bitfinex-derivatives/quotes_ETHF0:USTF0_20250624
["timestamp","ask_amount","ask_price","bid_price","bid_amount"]
[1750793954154,28.7608,2432.5,2432.1,4.5969]
[1750793954358,29.41822,2432.5,2432.2,0.7132]
[1750793954550,29.41822,2432.5,2432.2,5.0832]
[1750793954854,0.65745,2432.4,2432.2,5.0832]
[1750793955054,0.65746,2432.3,2432.2,5.0832]
[1750793956343,0.65746,2432.3,2432.2,4.37]
[1750793956555,6.44702402,2432.3,2432.2,4.37]
[1750793956748,13.20202402,2432.3,2432.2,3.9022]
[1750793956950,0.6576,2431.8,2431.7,7.3434]
[1750793957149,0.65765,2431.6,2431.5,3.2078]
[1750793957361,0.65765,2431.6,2431.5,7.7478]
[1750793957650,0.65765,2431.6,2431.5,4.54]
[1750793959456,2.08015,2431.6,2431.5,4.54]
[1750793959754,6.33678984,2431.6,2431.5,4.54]
[1750793960951,4.25663984,2431.6,2431.5,4.54]
[1750793961150,3.2078,2431.6,2431.5,4.54]
[1750793961749,4.25696654,2431.6,2431.5,4.54]
[1750793961950,3.2078,2431.6,2431.5,4.54]
[1750793962553,4.91508281,2431.6,2431.5,4.54]
[1750793962752,6.25158281,2431.6,2431.5,4.54]
[1750793964164,4.25743281,2431.6,2431.5,4.54]
[1750793964359,5.59393281,2431.6,2431.5,4.54]
[1750793964561,6.25158281,2431.6,2431.5,4.54]
[1750793968360,4.91509281,2431.6,2431.5,4.54]
[1750793968569,4.9160997,2431.6,2431.5,4.54]
[1750793968860,3.86546,2431.6,2431.5,4.54]
[1750793969862,0.65766,2431.6,2431.5,4.54]
[1750793971963,1.70806644,2431.6,2431.5,4.54]
[1750793972163,8.81063046,2431.6,2431.5,4.54]
[1750793972477,1.70806644,2431.6,2431.5,4.54]
[1750793972963,15.70543046,2431.6,2431.5,4.54]
[1750793974062,15.70543046,2431.6,2431.5,2.48418039]
[1750793974366,16.69195046,2431.6,2430.8,3.9057]
[1750793974568,0.6578,2431.1,2430.8,10.1657]
[1750793974757,25.579,2431.0,2430.8,10.1657]
[1750793974957,6.45656402,2431.8,2430.8,18.282]
[1750793975269,26.62851335,2431.7,2431.5,0.65768]
[1750793975466,25.578,2431.7,2431.6,1.3165]
[1750793975667,25.578,2431.7,2431.6,2.2765]
[1750793976270,6.757,2431.9,2431.6,2.93415]
[1750793976470,1.05207217,2431.8,2431.6,3.6358]
[1750793976672,1.05207217,2431.7,2431.6,3.6358]
[1750793976969,1.70972018,2431.7,2431.6,2.2765]
[1750793977164,7.57088096,2431.7,2431.6,0.96]
[1750793977366,1.78131694,2431.7,2431.6,0.96]
[1750793977564,8.53831694,2431.7,2431.6,0.96]
[1750793977766,10.69031694,2431.7,2431.6,0.96]
[1750793977966,9.97631694,2431.7,2431.6,0.96]
[1750793979773,13.18411694,2431.7,2431.6,0.96]
[1750793980975,19.01211694,2431.7,2431.6,0.96]
[1750793984380,24.01211694,2431.7,2431.6,0.96]
[1750793986180,26.42401492,2431.7,2431.6,0.96]
[1750793986375,0.65777,2431.2,2431.1,1.47]
[1750793986681,0.65779,2431.1,2431.0,1.3567]
[1750793986977,1.71389748,2431.1,2431.0,7.8167]
[1750793987874,1.05610748,2431.1,2431.0,7.8167]
[1750793988074,1.05610748,2431.1,2431.0,8.47452]
[1750793988274,1.05610748,2431.1,2431.0,7.8167]
[1750793988479,1.71389748,2431.1,2431.0,7.8167]
[1750793991278,7.5034615,2431.1,2431.0,7.8167]
[1750793991781,10.7112615,2431.1,2431.0,6.46]
[1750793992079,0.65792,2430.6,2430.5,6.56374075]
[1750793992289,0.65806,2430.1,2430.0,3.17]
[1750793992475,25.55,2430.2,2430.0,4.58]
[1750793992672,0.65796,2430.5,2430.0,5.9472]
[1750793992876,26.61081522,2430.4,2430.0,5.9472]
[1750793993079,1.71582522,2430.3,2430.0,5.9472]
[1750793993276,1.71584522,2430.2,2430.0,5.9472]
[1750793993483,25.553,2430.4,2430.0,5.9472]
[1750793993679,0.65805,2430.2,2430.0,5.9472]
[1750793994086,5.78956402,2430.3,2430.0,4.58]
[1750793994278,1.71372265,2430.2,2430.0,4.58]
[1750793994583,6.44757402,2430.3,2430.0,4.58]
[1750793994778,1.05567857,2430.2,2430.0,4.58]
[1750793994992,3.2078,2430.6,2430.0,4.58]
[1750793995192,1.05572784,2430.5,2430.4,0.65796]
[1750793995378,25.547,2430.6,2430.4,2.88796]
[1750793995684,25.547,2430.6,2430.5,0.6723]
[1750793995886,26.60229627,2430.6,2430.5,1.5623]
[1750793996279,1.05529627,2430.6,2430.5,2.22025]
[1750793996479,33.39029627,2430.6,2430.5,2.22025]
[1750793996680,5.78956402,2430.8,2430.6,0.65792]
[1750793996882,33.39074899,2430.7,2430.6,0.83792]
[1750793997288,33.39074899,2430.7,2430.6,1.6207]
[1750793997488,33.39074899,2430.7,2430.6,2.27862]
[1750793997785,33.39074899,2430.7,2430.6,1.6207]
[1750793998288,33.38574899,2430.7,2430.6,2.27862]
[1750793998484,34.04363899,2430.7,2430.6,1.6207]
[1750793998685,34.04363899,2430.7,2430.6,0.18]
[1750794000488,33.38574899,2430.7,2430.6,0.18]
[1750794000790,33.38574899,2430.7,2430.6,0.83792]
[1750794001088,32.33,2430.7,2430.6,0.83792]
[1750794001279,34.0449072,2430.7,2430.6,0.18]
[1750794001583,33.3870172,2430.7,2430.6,0.83792]
[1750794001789,33.3870172,2430.7,2430.6,0.18]
[1750794001987,34.0449072,2430.7,2430.6,0.18]
[1750794002289,35.4505072,2430.7,2430.6,0.18]
[1750794003386,35.4505072,2430.7,2430.3,0.6708]
[1750794003387,0.65798,2430.4,2430.3,0.6708]
[1750794003688,31.98654402,2430.4,2430.3,2.9808]
[1750794003880,33.04280645,2430.4,2430.3,2.9808]
[1750794004691,32.38482645,2430.4,2430.3,2.9808]
[1750794005486,33.042492,2430.4,2430.3,2.9808]
[1750794005695,31.98653402,2430.4,2430.3,2.9808]
[1750794005985,0.65796,2430.5,2430.3,2.9808]
[1750794006178,32.286,2430.4,2430.3,2.9808]
[1750794006383,32.94397,2430.4,2430.3,2.9808]
[1750794008595,39.7902266,2430.4,2430.3,2.9808]
[1750794008790,0.65808,2430.0,2429.9,3.2078]
[1750794008982,31.95864402,2430.0,2429.9,7.3378]
[1750794009183,38.71864402,2430.0,2429.9,7.3378]
[1750794010587,32.92908,2430.0,2429.9,7.3378]
[1750794010788,2.36039,2430.4,2429.9,7.3378]
[1750794010789,0.7154,2430.4,2429.9,7.3378]
[1750794010994,0.65807,2430.1,2429.9,7.3378]
[1750794011296,0.65807,2430.1,2430.0,1.3524]
[1750794011496,0.65807,2430.1,2430.0,6.4624]
[1750794011696,26.17207,2430.1,2430.0,6.4624]
[1750794013096,26.17207,2430.1,2430.0,7.1568]
[1750794016593,26.17207,2430.1,2430.0,5.8044]
[1750794016794,27.23106012,2430.1,2430.0,5.8044]
[1750794018599,1.05899012,2430.1,2430.0,5.8044]
[1750794018901,25.479,2430.1,2430.0,12.90168]
[1750794019400,25.479,2430.1,2430.0,7.90168]
[1750794020101,26.13706,2430.1,2430.0,7.90168]
[1750794021094,27.1984784,2430.1,2430.0,7.90168]
[1750794023202,26.5404184,2430.1,2430.0,7.90168]
[1750794023706,26.54099154,2430.1,2430.0,7.90168]
[1750794024201,0.65804,2430.2,2430.1,0.65803]
[1750794024406,25.467,2430.2,2430.1,5.00806]
[1750794024606,1.06202656,2430.2,2430.1,6.33576]
[1750794024797,26.12485,2430.9,2430.8,0.65786]
[1750794025009,26.52908756,2430.9,2430.8,1.88786]
[1750794025693,27.18692756,2430.9,2430.8,1.88786]
[1750794025899,27.18692756,2430.9,2430.8,1.23]
[1750794026806,0.65797,2430.4,2430.3,0.65799]
[1750794027004,0.65797,2430.4,2430.3,3.95799]
[1750794027306,1.71948562,2430.4,2430.3,3.95799]
[1750794027502,1.06151562,2430.4,2430.3,3.95799]
[1750794027805,25.478,2430.5,2430.4,0.65797]
[1750794028004,25.49,2430.8,2430.4,8.3278]
[1750794028304,1.06124204,2430.7,2430.5,1.351]
[1750794028504,1.7189822,2430.6,2430.5,7.311]
[1750794028706,0.65792,2430.6,2430.5,7.311]
[1750794028903,0.65791,2430.7,2430.6,0.65792]
[1750794029100,0.65791,2430.7,2430.5,1.351]
[1750794029101,0.65792,2430.6,2430.5,1.351]
[1750794029298,0.65792,2430.6,2430.5,6.01895]
[1750794029805,0.65792,2430.6,2430.5,5.361]
[1750794030506,0.65792,2430.6,2430.5,6.01895]
[1750794031010,0.65791,2430.7,2430.5,5.361]
[1750794031510,0.65791,2430.7,2430.6,0.65792]
[1750794031813,1.71764494,2430.7,2430.6,3.96792]
[1750794032010,1.71764494,2430.7,2430.6,3.31]
[1750794033913,3.14794494,2430.7,2430.6,3.31]
[1750794034210,1.71764494,2430.7,2430.6,3.31]
[1750794034714,27.18262494,2430.7,2430.6,3.31]
[1750794036010,1.05973494,2430.7,2430.6,3.96792]
[1750794036306,26.12186,2430.9,2430.8,0.65785]
[1750794036512,25.464,2430.9,2430.8,3.70785]
[1750794037107,25.464,2430.9,2430.8,4.36615]
[1750794037305,26.12184,2430.9,2430.8,3.05]
[1750794037503,27.18123446,2430.9,2430.8,3.70787]
[1750794037709,0.65781,2431.1,2431.0,0.6578]
[1750794037918,32.96960859,2431.1,2431.0,1.42]
[1750794038118,34.39360859,2431.1,2431.0,1.42]
[1750794038914,39.39360859,2431.1,2431.0,1.42]
[1750794039717,0.65792,2430.6,2430.5,2.11]
[1750794039911,0.65795,2430.5,2430.4,3.2078]
[1750794040212,3.04788457,2430.5,2430.4,7.4178]
[1750794040715,2.38993457,2430.5,2430.4,8.07577]
[1750794040916,3.04788457,2430.5,2430.4,4.21]
[1750794044721,1.05923457,2430.5,2430.4,4.21]
[1750794044918,25.463,2430.7,2430.4,7.4178]
[1750794045119,2.43256962,2431.5,2430.6,5.78956402]
[1750794045419,3.09017962,2431.8,2431.4,3.2078]
[1750794045626,1.05953883,2431.7,2431.5,0.7082]
[1750794045814,25.499,2431.8,2431.5,5.9485]
[1750794046126,0.65765,2431.6,2431.5,5.2882]
[1750794046421,1.71724582,2431.6,2431.5,4.58]
[1750794046918,3.05544582,2431.6,2431.5,4.58]
[1750794048016,2.39779582,2431.6,2431.5,4.58]
[1750794048216,1.05959582,2431.6,2431.5,4.58]
[1750794048616,3.2078,2431.7,2431.5,4.58]
[1750794048923,1.05909038,2431.6,2431.5,4.58]
[1750794049222,3.2078,2431.7,2431.5,5.23767]
[1750794050119,6.701,2431.8,2431.5,5.23767]
[1750794050423,6.701,2431.8,2431.7,0.65762]
[1750794050622,32.184,2431.8,2431.7,3.78762]
[1750794050820,25.483,2431.8,2431.7,3.13]
[1750794051021,0.65757,2431.9,2431.7,3.13]
[1750794051319,27.19788638,2431.8,2431.7,3.13]
[1750794051516,27.89728638,2431.8,2431.7,3.13]
[1750794051819,3.71768638,2431.8,2431.7,3.13]
[1750794052022,35.26208638,2431.8,2431.7,3.13]
[1750794054923,35.91968638,2431.8,2431.7,3.13]
[1750794055916,35.26208638,2431.8,2431.7,3.13]
[1750794056820,35.91968638,2431.8,2431.7,3.13]
[1750794057324,40.91968638,2431.8,2431.7,3.13]
[1750794057716,40.91968638,2431.8,2431.7,1.07399441]
[1750794058025,0.65773,2431.3,2431.2,5.3982]
[1750794058320,26.13073,2431.3,2431.2,5.3982]
[1750794058516,27.18756424,2431.3,2431.2,5.3982]
[1750794058716,28.54046424,2431.3,2431.2,5.3982]
[1750794059321,3.2078,2431.5,2431.2,6.05595]
[1750794059517,25.469,2431.3,2431.2,6.72724]
[1750794059820,25.463,2431.4,2431.2,6.72724]
[1750794060014,25.463,2431.4,2431.3,0.65773]
[1750794060326,25.463,2431.4,2431.3,4.32773]
[1750794060625,25.463,2431.4,2431.3,3.67]
[1750794063219,25.463,2431.4,2431.3,4.32773]
[1750794064329,25.463,2431.4,2431.3,3.67]
[1750794064624,25.463,2431.4,2431.3,4.32773]
[1750794067724,6.709,2431.7,2431.6,0.65765]
[1750794067930,3.2078,2432.1,2432.0,0.65754]
[1750794068225,29.32132,2432.1,2432.0,2.36]
[1750794068427,30.37981028,2432.1,2432.0,2.36]
[1750794069825,29.72229028,2432.1,2432.0,2.36]
[1750794070223,31.07169028,2432.1,2432.0,2.36]
[1750794071123,31.07169028,2432.1,2432.0,3.01754]
[1750794071124,1.05849028,2432.1,2432.0,3.01754]
[1750794071327,25.455,2432.3,2432.2,0.65749]
[1750794071516,26.51425865,2432.3,2432.2,1.79749]
[1750794072423,1.05925865,2432.3,2432.2,1.14]
[1750794072623,26.51425865,2432.3,2432.2,1.79749]
[1750794074226,1.05925865,2432.3,2432.2,1.79749]
[1750794074428,26.51225865,2432.3,2432.2,1.79749]
[1750794075532,1.05925865,2432.3,2432.2,1.79749]
[1750794075831,26.51125865,2432.3,2432.2,1.79749]
[1750794077634,1.05925865,2432.3,2432.2,1.79749]
[1750794077839,26.51025865,2432.3,2432.2,1.79749]
[1750794079640,25.451,2432.3,2432.2,1.79749]
[1750794081634,26.51349648,2432.3,2432.2,1.79749]
[1750794082635,25.451,2432.3,2432.2,1.79749]
[1750794083236,25.451,2432.3,2432.2,3.20369]
[1750794083934,5.828,2432.6,2432.5,0.65741]
[1750794084140,25.447,2432.7,2432.5,1.44]
[1750794084328,31.2462637,2432.7,2432.5,1.44]
[1750794084643,1.3941,2432.6,2432.5,1.44]
[1750794084938,3.11302037,2432.6,2432.5,1.44]
[1750794085441,1.3941,2432.6,2432.5,1.44]
[1750794085639,2.45572731,2432.6,2432.5,1.44]
[1750794085941,8.25492598,2432.6,2432.5,1.44]
[1750794088332,8.91230598,2432.6,2432.5,1.44]
[1750794088938,8.25492598,2432.6,2432.5,1.44]
[1750794090845,8.91230598,2432.6,2432.5,1.44]
[1750794091143,8.25492598,2432.6,2432.5,1.44]
[1750794093251,14.08292598,2432.6,2432.5,1.44]
[1750794093546,14.08292598,2432.6,2432.5,2.09741]
[1750794093547,1.06156228,2432.6,2432.5,2.09741]
[1750794093741,26.50356228,2432.6,2432.5,2.09741]
[1750794095142,26.50356228,2432.6,2432.5,1.44]
[1750794096249,30.22751766,2432.6,2432.5,1.44]
[1750794099346,29.57013766,2432.6,2432.5,1.44]
[1750794099848,30.22751766,2432.6,2432.5,1.44]
[1750794100648,30.22351766,2432.6,2432.5,1.44]
[1750794101051,4.78551766,2432.6,2432.5,1.44]
[1750794101350,30.22351766,2432.6,2432.5,1.44]
[1750794101749,29.56613766,2432.6,2432.5,1.44]
[1750794101950,1.06156228,2432.6,2432.5,1.44]
[1750794102150,1.06156228,2432.6,2432.5,2.09741]
[1750794102654,1.06156228,2432.6,2432.5,4.08461]
[1750794103242,8.41207962,2433.3,2432.6,1.64346]
[1750794103548,0.65727,2433.0,2432.8,3.86511]
[1750794103847,0.65726,2433.1,2432.9,1.33679]
[1750794104052,0.65726,2433.1,2433.0,0.6846]
[1750794104351,25.436,2433.2,2433.0,3.5146]
[1750794104650,25.436,2433.2,2433.0,4.17185]
[1750794104852,25.436,2433.2,2433.0,3.5146]
[1750794106246,26.09322,2433.2,2433.0,3.5146]
[1750794106555,25.436,2433.2,2433.0,3.5146]
[1750794107051,3.06657538,2433.3,2433.1,0.65724]
[1750794107245,6.688,2433.5,2433.1,6.2078]
[1750794107454,13.79382997,2434.1,2433.1,6.2078]
[1750794107455,6.166345,2434.0,2433.4,3.2078]
[1750794107659,25.432,2433.9,2433.8,0.65705]
[1750794107861,3.06657538,2434.0,2433.8,0.65705]
[1750794108062,3.06657538,2434.0,2433.9,0.65703]
[1750794108260,25.432,2434.0,2433.9,0.01]
[1750794108570,25.432,2434.0,2433.9,0.66703]
[1750794108865,9.8948,2434.2,2434.0,0.65699]
[1750794109067,9.8948,2434.2,2434.1,0.6982]
[1750794109364,35.3258,2434.2,2434.1,0.6982]
[1750794109865,9.8948,2434.2,2434.1,0.6982]
[1750794110067,35.3218,2434.2,2434.1,0.6982]
[1750794110264,35.97875,2434.2,2434.1,0.6982]
[1750794112072,35.3218,2434.2,2434.1,0.6982]
[1750794113267,9.8948,2434.2,2434.1,0.6982]
[1750794113467,35.3188,2434.2,2434.1,0.6982]
[1750794114460,35.3188,2434.2,2433.6,6.679]
[1750794114663,0.65701,2434.0,2433.8,0.6847]
[1750794114863,29.28783,2433.9,2433.8,5.47]
[1750794115057,0.6571,2433.7,2433.5,0.6767]
[1750794115261,0.0688,2434.0,2433.5,1.64]
[1750794115262,30.66352,2433.6,2433.5,1.64]
[1750794115663,36.71790097,2433.6,2433.5,1.64]
[1750794115865,0.6572,2433.3,2433.0,0.6767]
[1750794116066,3.06657538,2433.1,2433.0,3.3267]
[1750794117174,25.42,2433.1,2433.0,3.3267]
[1750794117372,25.42,2433.1,2433.0,3.98397]
[1750794117574,25.42,2433.1,2433.0,3.3267]
[1750794118269,25.419,2433.2,2433.0,3.3267]
[1750794118470,3.06657538,2433.1,2433.0,3.3267]
[1750794119374,28.48657538,2433.1,2433.0,3.3267]
[1750794120072,25.42,2433.1,2433.0,3.3267]
[1750794120470,26.07724,2433.1,2433.0,3.3267]
[1750794120674,29.14381538,2433.1,2433.0,3.3267]
[1750794121178,28.48657538,2433.1,2433.0,3.3267]
[1750794121674,3.2078,2433.4,2433.0,3.3267]
[1750794121870,25.419,2433.5,2433.2,0.6572]
[1750794122070,0.65717,2433.4,2433.2,3.32]
[1750794122270,25.419,2433.5,2433.2,3.97722]
[1750794122675,3.72376538,2433.4,2433.2,3.32]
[1750794122878,0.65719,2433.3,2433.2,3.32]
[1750794123072,28.48557538,2433.5,2433.2,3.32]
[1750794123282,0.65717,2433.4,2433.2,3.32]
[1750794123471,0.65719,2433.3,2433.2,3.32]
[1750794123871,3.72376538,2433.3,2433.2,3.32]
[1750794124679,3.2078,2433.4,2433.2,3.32]
[1750794124878,4.6227,2433.4,2433.2,3.32]
[1750794126277,5.27986,2433.4,2433.2,3.32]
[1750794126669,4.6227,2433.4,2433.2,3.32]
[1750794127469,4.6227,2433.4,2433.2,3.97721]
[1750794128181,3.2078,2433.4,2433.3,0.65719]
[1750794128476,3.2078,2433.4,2433.3,2.88719]
[1750794128477,4.26397807,2433.4,2433.3,2.88719]
[1750794128880,29.67997807,2433.4,2433.3,2.88719]
[1750794129078,29.67997807,2433.4,2433.3,2.23]
[1750794129274,4.26397807,2433.4,2433.3,2.23]
[1750794129580,29.67997807,2433.4,2433.3,2.23]
[1750794130169,29.67997807,2433.4,2433.3,2.88719]
[1750794130370,4.26397807,2433.4,2433.3,2.88719]
[1750794130683,3.06657538,2433.7,2433.5,0.65712]
[1750794130875,26.47302769,2433.6,2433.5,2.73712]
[1750794131380,26.47302769,2433.6,2433.5,2.08]
[1750794131572,27.13013769,2433.6,2433.5,2.08]
[1750794131770,28.48203769,2433.6,2433.5,2.08]
[1750794135278,2.40892769,2433.6,2433.5,2.08]
[1750794135483,33.15002769,2433.6,2433.5,2.08]
[1750794136580,26.47002769,2433.6,2433.5,2.08]
[1750794136981,27.12713769,2433.6,2433.5,2.08]
[1750794138082,28.56683769,2433.6,2433.5,2.08]
[1750794139081,27.12713769,2433.6,2433.5,2.08]
[1750794140490,26.46902769,2433.6,2433.5,2.08]
[1750794140981,26.46902769,2433.6,2433.5,2.736]
[1750794142087,1.05702769,2433.6,2433.5,2.736]
[1750794142286,26.46802769,2433.6,2433.5,2.736]
[1750794142486,1.05702769,2433.6,2433.5,2.736]
[1750794142687,27.12413769,2433.6,2433.5,2.736]
[1750794142985,27.12313769,2433.6,2433.5,2.736]
[1750794143284,26.46602769,2433.6,2433.5,2.736]
[1750794144184,1.71413769,2433.6,2433.5,2.736]
[1750794144384,27.12313769,2433.6,2433.5,2.736]
[1750794144581,1.05702769,2433.6,2433.5,2.736]
[1750794144780,1.05702769,2433.6,2433.5,3.39314]
[1750794145083,26.46502769,2433.6,2433.5,2.736]
[1750794146184,27.12213769,2433.6,2433.5,2.736]
[1750794147486,26.46502769,2433.6,2433.5,2.736]
[1750794148188,27.12213769,2433.6,2433.5,2.736]
[1750794148385,26.46502769,2433.6,2433.5,2.736]
[1750794150494,27.12213769,2433.6,2433.5,2.736]
[1750794151395,26.46502769,2433.6,2433.5,2.736]
[1750794153397,27.12213769,2433.6,2433.5,2.736]
[1750794155699,26.46502769,2433.6,2433.5,2.736]
[1750794156899,26.46502769,2433.6,2433.5,3.39314]
[1750794157401,26.45602769,2433.6,2433.5,3.39314]
[1750794158602,27.11213769,2433.6,2433.5,2.736]
[1750794158797,27.11213769,2433.6,2433.5,2.08]
[1750794159003,28.54023769,2433.6,2433.5,2.08]
[1750794159895,51.67960731,2433.6,2433.5,2.08]
[1750794160594,46.67860731,2433.6,2433.5,2.08]
[1750794162103,44.24603769,2433.6,2433.5,2.08]
[1750794162397,44.24503769,2433.6,2433.5,2.08]
[1750794162804,46.67760731,2433.6,2433.5,2.08]
[1750794164399,51.67760731,2433.6,2433.5,2.08]
[1750794164706,0.65727,2433.0,2432.9,2.9919]
[1750794164900,29.11884538,2433.0,2432.9,4.9619]
[1750794165094,30.17587307,2433.0,2432.9,4.9619]
[1750794165808,31.60337307,2433.0,2432.9,4.9619]
[1750794166005,31.60337307,2433.0,2432.9,1.97]
[1750794167306,31.93186717,2433.0,2432.9,1.97]
[1750794167809,31.60337307,2433.0,2432.9,1.97]
[1750794168511,34.81117307,2433.0,2432.9,1.97]
[1750794169411,35.14012624,2433.0,2432.9,1.97]
[1750794169802,34.81117307,2433.0,2432.9,1.97]
[1750794175917,29.65582769,2433.0,2432.9,1.97]
[1750794176106,26.44802769,2433.0,2432.9,3.2942]
[1750794176308,25.391,2433.0,2432.9,3.9515]
[1750794177106,25.391,2433.0,2432.9,3.2942]
[1750794177917,26.04827,2433.0,2432.9,3.2942]
[1750794178222,27.10242736,2433.0,2432.9,1.97]
[1750794181318,37.56052736,2433.0,2432.9,1.97]
[1750794181516,42.56052736,2433.0,2432.9,1.44271845]
[1750794181821,45.00478444,2433.0,2432.9,1.44271845]
[1750794182016,42.56052736,2433.0,2432.9,1.44271845]
[1750794184317,4.91922736,2433.0,2432.9,1.44271845]
[1750794184512,33.75742736,2433.0,2432.9,1.44271845]
[1750794184725,1.71142736,2433.0,2432.9,1.44271845]
[1750794185026,33.75742736,2433.0,2432.9,1.44271845]
[1750794185219,36.96522736,2433.0,2432.9,1.44271845]
[1750794185427,38.39922736,2433.0,2432.9,1.44271845]
[1750794185727,0.6573,2432.9,2432.8,0.7095]
[1750794186027,6.21203274,2432.9,2432.8,0.7595]
[1750794186223,6.21203274,2432.9,2432.8,0.05]
[1750794187533,6.21203274,2432.9,2432.8,0.00353069]
[1750794188234,8.94405163,2432.9,2432.8,0.00353069]
[1750794189031,13.94405163,2432.9,2432.8,0.00353069]
[1750794189228,0.65738,2432.6,2432.5,0.6586]
[1750794189525,0.65738,2432.6,2432.5,1.91]
[1750794189526,48.59093163,2432.6,2432.5,1.91]
[1750794191126,4.26195736,2432.6,2432.5,1.91]
[1750794191328,26.43815736,2432.6,2432.5,3.9071]
[1750794193333,27.09553736,2432.6,2432.5,3.9071]
[1750794193627,27.09553736,2432.6,2432.5,2.5914]
[1750794195024,36.96433736,2432.6,2432.5,1.91]
[1750794195229,0.65749,2432.2,2432.1,0.6839]
[1750794195429,26.03949,2432.2,2432.1,3.591]
[1750794195627,33.75464736,2432.2,2432.1,3.591]
[1750794196734,35.13854736,2432.2,2432.1,2.25]
[1750794197323,40.46652625,2432.2,2432.1,2.25]
[1750794198728,0.65762,2431.7,2431.6,3.27084881]
[1750794198937,32.70162,2431.7,2431.6,3.62]
[1750794199131,33.75577736,2431.7,2431.6,3.62]
[1750794199732,1.71177736,2431.7,2431.6,3.62]
[1750794199929,1.71177736,2431.7,2431.6,2.64717]
[1750794200443,0.65768,2431.5,2431.3,0.7052]
[1750794200740,0.65768,2431.5,2431.4,1.3455]
[1750794200938,27.0902618,2431.5,2431.4,2.5455]
[1750794201231,32.88885607,2431.5,2431.4,1.2]
[1750794202224,0.65776,2431.2,2431.1,0.7119]
[1750794202526,26.04076,2431.2,2431.1,1.9519]
[1750794203633,38.49135427,2431.2,2431.1,1.24]
[1750794203834,39.5389499,2431.2,2431.1,1.24]
[1750794204343,40.9771499,2431.2,2431.1,1.24]
[1750794206343,26.43559563,2431.2,2431.1,1.24]
[1750794206736,26.43559563,2431.2,2431.1,2.5521]
[1750794206933,25.388,2431.2,2431.1,2.5521]
[1750794207132,26.43536804,2431.2,2431.1,2.5521]
[1750794207437,25.388,2431.2,2431.1,2.5521]
[1750794207630,25.388,2431.2,2431.1,11.41769]
[1750794207827,25.388,2431.2,2431.1,10.7599]
[1750794208027,25.388,2431.3,2431.2,0.65775]
[1750794208233,25.388,2431.3,2431.2,6.57985]
[1750794208439,25.388,2431.3,2431.2,11.57985]
[1750794209439,4.8515,2432.3,2431.7,0.65762]
[1750794209641,0.65756,2432.0,2431.8,6.55189]
[1750794209941,25.388,2431.9,2431.8,9.43189]
[1750794210341,25.388,2431.9,2431.8,8.7743]
[1750794210933,25.388,2431.9,2431.8,9.4319]
[1750794211544,26.04557,2431.9,2431.8,9.4319]
[1750794211936,25.386,2432.0,2431.9,0.65756]
[1750794212243,26.43447138,2432.0,2431.9,4.50836]
[1750794212444,25.386,2432.0,2431.9,4.50836]
[1750794212746,26.434546,2432.0,2431.9,4.50836]
[1750794212946,25.386,2432.0,2431.9,4.50836]
[1750794213143,3.2078,2432.3,2431.9,3.8508]
[1750794213347,26.43437274,2432.2,2432.0,0.65753]
[1750794213648,0.65748,2432.3,2432.1,5.1761]
[1750794213846,26.43415848,2432.2,2432.1,8.4061]
[1750794214047,27.09164848,2432.2,2432.1,7.7486]
[1750794214651,27.09164848,2432.2,2432.1,4.5408]
[1750794215347,27.08964848,2432.2,2432.1,4.5408]
[1750794215548,26.04149,2432.2,2432.1,4.5408]
[1750794216951,26.04149,2432.2,2432.1,3.23]
[1750794220739,32.88916302,2432.2,2432.1,3.23]
[1750794221546,34.29556302,2432.2,2432.1,3.23]
[1750794223551,39.56656875,2432.2,2432.1,3.23]
[1750794223750,45.36516302,2432.2,2432.1,3.23]
[1750794225552,0.65756,2432.0,2431.8,2.01239]
[1750794225751,25.38,2431.9,2431.8,3.69239]
[1750794226450,25.38,2431.9,2431.8,3.0348]
[1750794226451,26.03757,2431.9,2431.8,3.0348]
[1750794226651,25.38,2431.9,2431.8,3.0348]
[1750794227046,26.03757,2431.9,2431.8,3.0348]
[1750794234749,27.09185604,2431.9,2431.8,3.0348]
[1750794234951,26.43428604,2431.9,2431.8,3.0348]
[1750794235256,27.09185604,2431.9,2431.8,3.0348]
[1750794236356,30.16008351,2431.9,2431.8,3.0348]
[1750794236659,30.16008351,2431.9,2431.8,1.68]
[1750794237058,31.52278351,2431.9,2431.8,1.68]
[1750794239555,30.86521351,2431.9,2431.8,1.68]
[1750794240270,31.52278351,2431.9,2431.8,1.68]
[1750794240562,30.86521351,2431.9,2431.8,1.68]
[1750794240862,31.52278351,2431.9,2431.8,1.68]
[1750794241563,30.86521351,2431.9,2431.8,1.68]
[1750794242362,31.52278351,2431.9,2431.8,1.68]
[1750794242559,26.43428604,2431.9,2431.8,1.68]
[1750794242763,26.42928604,2431.9,2431.8,1.68]
[1750794244462,27.08685604,2431.9,2431.8,1.68]
[1750794244960,1.05428604,2431.9,2431.8,2.3376]
[1750794245161,1.05428604,2431.9,2431.8,9.8878]
[1750794245367,1.05428604,2431.9,2431.8,10.5454]
[1750794245669,1.05428604,2431.9,2431.8,12.5025]
[1750794246265,1.71185604,2431.9,2431.8,2.3365]
[1750794247552,1.05428604,2431.9,2431.8,7.5025]
[1750794249063,1.05428604,2431.9,2431.8,12.5025]
[1750794249257,25.371,2432.1,2431.9,0.65757]
[1750794249463,1.05950747,2432.0,2431.9,7.0505]
[1750794249764,1.71704747,2432.0,2431.9,7.0505]
[1750794250962,1.71704747,2432.0,2431.9,5.6973]